[Event "Rohde op 09th"]
[Site "Sautron"]
[Date "2009.10.26"]
[Round "4"]
[White "Lalic, Bogdan"]
[Black "Colovic, Aleksandar"]
[Result "1/2-1/2"]
[ECO "D85"]
[WhiteElo "2495"]
[BlackElo "2441"]
[Annotator "RR"]
[PlyCount "53"]
[EventDate "2009.10.24"]
[EventType "swiss"]
[EventRounds "9"]
[EventCountry "FRA"]
[SourceTitle "EXT 2010"]
[Source "ChessBase"]
[SourceDate "2010.11.25"]
[SourceVersion "1"]
[SourceVersionDate "2010.11.25"]
[SourceQuality "1"]
[TimeControl "40/6000+30:1800+30"]

1. d4 Nf6 2. c4 g6 3. Nc3 d5 4. cxd5 Nxd5 5. e4 Nxc3 6. bxc3 Bg7 7. Nf3 c5 8.
Bb5+ (8. Rb1) (8. Be3) 8... Nc6 (8... Bd7) (8... Nd7) 9. O-O cxd4 10. cxd4 O-O
11. Be3 Bg4 {[%csl Rd4]} 12. Bxc6 (12. d5 {Ce sacrifice de qualité a été peu
utilisé mais les blancs ont des bonnes compensations} Ne5 (12... Bxa1 13. Qxa1
$44 {[%csl Rg7][%cal Ge3h6]}) 13. Rb1 $14 {Peev,P (2440)-Ghinda,M (2445)
Pernik 1978 (2) 1-0}) 12... bxc6 13. Rc1 Qa5 (13... Qd7) 14. Qd2 Qxd2 15. Nxd2
Rfd8 16. Nb3 a5 $11 17. Rxc6 a4 18. Nc5 Bxd4 19. Bxd4 Rxd4 20. f3 Rc8 $1 21.
Rxc8+ Bxc8 22. Rc1 a3 23. Nb3 Rd8 24. Nc5 $146 (24. Rc7 {Gustafsson,J (2603)
-Kramnik,V (2788) Dortmund SuperGM 2008 (1) 1/2}) 24... Rd2 25. Nb3 Rd8 26. Nc5
Rd2 {[%csl Ra2]} 27. Nb3 {[%cal Gc1c8,Gb3d2]} 1/2-1/2